[Event "44th Chess Olympiad Women 2022"]
[Site "Chennai"]
[Date "2022.08.08"]
[Round "10.17"]
[White "Librelato, Kathie Goulart"]
[Black "Pilsova, Karolina"]
[Result "0-1"]
[WhiteElo "2255"]
[BlackElo "2230"]
[Annotator "RC"]
[PlyCount "133"]
[EventDate "2022.??.??"]
[TimeControl "60"]

1. e4 {[%emt 0:00:03]} e5 {[%emt 0:00:07]} 2. Bc4 {[%emt 0:00:07]} Nf6 {
[%emt 0:00:41]} 3. d3 {[%emt 0:00:05]} c6 {[%emt 0:01:43]} 4. Nf3 {[%emt 0:00:
00]} d6 {[%emt 0:10:19]} 5. O-O {[%emt 0:01:06]} Be7 {[%emt 0:02:09]} 6. Nc3 {
[%emt 0:05:07]} O-O {[%emt 0:01:12]} 7. d4 {[%emt 0:01:17]} Qc7 {[%emt 0:07:01]
} 8. h3 {[%emt 0:13:34]} Nbd7 {[%emt 0:02:31]} 9. Be3 {[%emt 0:10:48]} b5 {
[%emt 0:19:16]} 10. Bd3 {[%emt 0:05:13]} a6 {[%emt 0:00:44]} 11. a4 {[%emt 0:
00:00]} b4 {[%emt 0:09:31]} 12. Nb1 {[%emt 0:02:38]} exd4 {[%emt 0:08:31]} 13.
Nxd4 {[%emt 0:05:15]} Nc5 {[%emt 0:01:02]} 14. Nd2 {[%emt 0:00:23]} Bd7 {
[%emt 0:08:39]} 15. Qf3 {[%emt 0:04:53]} d5 {[%emt 0:07:31]} 16. exd5 {[%emt 0:
00:00]} Nxd3 {[%emt 0:02:46]} 17. d6 {[%emt 0:02:27]} Bxd6 {[%emt 0:02:42]} 18.
cxd3 {[%emt 0:00:06]} Nd5 {[%emt 0:02:11]} 19. Rac1 {[%emt 0:02:25]} Rac8 {
[%emt 0:02:30]} 20. N2b3 {[%emt 0:02:17]} Nxe3 {[%emt 0:03:43]} 21. fxe3 {
[%emt 0:00:16]} c5 {[%emt 0:00:16]} 22. Nf5 {[%emt 0:01:23]} Bxf5 {[%emt 0:00:
00]} 23. Qxf5 {[%emt 0:00:06]} Qe7 {[%emt 0:00:11]} 24. Rf3 {[%emt 0:01:19]} g6
{[%emt 0:02:05]} 25. Qd5 {[%emt 0:03:10]} Rfd8 {[%emt 0:01:21]} 26. Qc4 {
[%emt 0:00:09]} Rc7 {[%emt 0:01:21]} 27. Qxa6 {[%emt 0:03:49]} Qe5 {[%emt 0:00:
00]} 28. Qc4 {[%emt 0:04:17]} Qxb2 {[%emt 0:01:20]} 29. a5 {[%emt 0:00:42]} Qe5
{[%emt 0:01:16]} 30. a6 {[%emt 0:00:41]} Qe8 {[%emt 0:00:52]} 31. Nd2 {[%emt 0:
00:00]} Qe6 {[%emt 0:00:44]} 32. Qb5 {[%emt 0:02:30]} Ra7 {[%emt 0:00:24]} 33.
Rcf1 {[%emt 0:01:36]} Rb8 {[%emt 0:00:29]} 34. Qc4 {[%emt 0:01:15]} b3 {
[%emt 0:00:35]} 35. Rf6 {[%emt 0:02:23]} Qxc4 {[%emt 0:00:34]} 36. Nxc4 {
[%emt 0:00:05]} Be7 {[%emt 0:00:32]} 37. Rxf7 {[%emt 0:02:00]} b2 {[%emt 0:00:
00]} 38. Nd2 {[%emt 0:00:05]} b1=Q {[%emt 0:00:57]} 39. Nxb1 {[%emt 0:00:23]}
Rxb1 {[%emt 0:00:07]} 40. Rxb1 {[%emt 0:00:05]} Kxf7 {[%emt 0:00:04]} 41. Rb6 {
[%emt 0:30:26]} Ke8 {[%emt 0:02:50]} 42. Kf2 {[%emt 0:00:00]} Kd7 {[%emt 0:00:
00]} 43. d4 {[%emt 0:00:00]} cxd4 {[%emt 0:06:38]} 44. exd4 {[%emt 0:00:00]}
Bd8 {[%emt 0:00:28]} 45. Rb3 {[%emt 0:00:00]} Rxa6 {[%emt 0:00:18]} 46. Kf3 {
[%emt 0:00:00]} Re6 {[%emt 0:05:41]} 47. Rb7+ {[%emt 0:00:00]} Bc7 {[%emt 0:00:
00]} 48. Ra7 {[%emt 0:00:00]} Kd6 {[%emt 0:03:26]} 49. g4 {[%emt 0:00:00]} Re7
{[%emt 0:01:51]} 50. h4 {[%emt 0:00:00]} Kd5 {[%emt 0:00:38]} 51. g5 {[%emt 0:
00:00]} Kxd4 {[%emt 0:02:06]} 52. h5 {[%emt 0:00:00]} Ke5 {[%emt 0:00:48]} 53.
Kg4 {[%emt 0:00:00]} Rd7 {[%emt 0:01:40]} 54. Rb7 {[%emt 0:00:09]} Rd4+ {
[%emt 0:01:16]} 55. Kf3 {[%emt 0:00:32]} Rc4 {[%emt 0:00:53]} 56. Rb5+ {
[%emt 0:01:17]} Ke6 {[%emt 0:00:05]} 57. Ke3 {[%emt 0:03:10]} Bd6 {[%emt 0:00:
00]} 58. Rb7 {[%emt 0:02:39]} Rc7 {[%emt 0:00:40]} 59. Rb6 {[%emt 0:00:23]} Ke5
{[%emt 0:00:44]} 60. Kf3 {[%emt 0:00:19]} Rc3+ {[%emt 0:01:14]} 61. Kg4 {
[%emt 0:00:13]} Rc4+ {[%emt 0:00:08]} 62. Kf3 {[%emt 0:01:16]} Rh4 {[%emt 0:00:
00]} 63. hxg6 {[%emt 0:00:58]} hxg6 {[%emt 0:00:02]} 64. Rb5+ {[%emt 0:00:32]}
Ke6 {[%emt 0:00:14]} 65. Rb6 {[%emt 0:01:48]} Rf4+ {[%emt 0:00:09]} 66. Ke3 {
[%emt 0:00:21]} Rf5 {[%emt 0:00:10]} 67. Kd4 {[%emt 0:00:24]} 0-1

[Event "44th Chess Olympiad Women 2022"]
[Site "Chennai"]
[Date "2022.08.08"]
[Round "10.17"]
[White "Movsesian, Julia"]
[Black "Alboredo, Julia"]
[Result "1/2-1/2"]
[WhiteElo "2291"]
[BlackElo "2264"]
[Annotator "NA RC"]
[PlyCount "74"]
[EventDate "2022.??.??"]
[TimeControl "60"]

1. e4 {[%emt 0:00:03]} c5 {[%emt 0:00:12]} 2. Nf3 {[%emt 0:00:05]} Nc6 {
[%emt 0:00:10]} 3. Bb5 {[%emt 0:00:06]} Nf6 {[%emt 0:00:37]} 4. Nc3 {[%emt 0:
00:00]} g6 {[%emt 0:00:35]} 5. h3 {[%emt 0:03:47]} Bg7 {[%emt 0:00:15]} 6. e5 {
[%emt 0:00:40]} Ng8 {[%emt 0:00:08]} 7. Bxc6 {[%emt 0:00:37]} dxc6 {[%emt 0:00:
00]} 8. d3 {[%emt 0:00:03]} Nh6 {[%emt 0:00:28]} 9. Be3 {[%emt 0:01:39]} b6 {
[%emt 0:05:34]} 10. g4 {[%emt 0:00:06]} f5 {[%emt 0:00:34]} 11. g5 {[%emt 0:00:
00]} Nf7 {[%emt 0:00:16]} 12. Bf4 {[%emt 0:00:08]} Be6 {[%emt 0:02:22]} 13. Qe2
{[%emt 0:03:41]} b5 {[%emt 0:03:40]} 14. Qe3 {[%emt 0:00:10]} Qb6 {[%emt 0:00:
00]} 15. a4 {[%emt 0:01:40]} a5 {[%emt 0:32:51]} 16. axb5 {[%emt 0:07:58]} cxb5
{[%emt 0:01:23]} 17. b4 {[%emt 0:00:22]} Qb7 {[%emt 0:00:46]} 18. bxc5 {
[%emt 0:01:40]} b4 {[%emt 0:00:16]} 19. Ne2 {[%emt 0:02:54]} Bd5 {[%emt 0:00:
00]} 20. Ned4 {[%emt 0:00:34]} Nd8 {[%emt 0:03:25]} 21. O-O {[%emt 0:06:20]}
O-O {[%emt 0:08:30]} 22. Ra4 {[%emt 0:07:07]} Qc8 {[%emt 0:03:15]} 23. Rfa1 {
[%emt 0:16:15]} Qxc5 {[%emt 0:02:54]} 24. Nd2 {[%emt 0:00:18]} Ne6 {[%emt 0:00:
00]} 25. Nxe6 {[%emt 0:21:10]} Qxe3 {[%emt 0:00:07]} 26. fxe3 {[%emt 0:01:23]}
Bxe6 {[%emt 0:00:07]} 27. Nf3 {[%emt 0:09:19]} b3 {[%emt 0:05:33]} 28. cxb3 {
[%emt 0:00:40]} Bxb3 {[%emt 0:00:07]} 29. Rxa5 {[%emt 0:00:05]} Rxa5 {[%emt 0:
00:00]} 30. Rxa5 {[%emt 0:00:01]} e6 {[%emt 0:00:28]} 31. Nd4 {[%emt 0:05:00]}
Bd5 {[%emt 0:00:10]} 32. Ra6 {[%emt 0:00:46]} Re8 {[%emt 0:01:30]} 33. e4 {
[%emt 0:03:24]} fxe4 {[%emt 0:00:14]} 34. dxe4 {[%emt 0:00:04]} Bxe4 {[%emt 0:
00:00]} 35. Nxe6 {[%emt 0:00:16]} Bxe5 {[%emt 0:02:01]} 36. Bxe5 {[%emt 0:00:
00]} Bf5 {[%emt 0:00:06]} 37. Bf6 {[%emt 0:01:41]} Bxe6 {[%emt 0:00:24]}
1/2-1/2

[Event "44th Chess Olympiad Women 2022"]
[Site "Chennai"]
[Date "2022.08.08"]
[Round "10.17"]
[White "Petrova, Kristyna"]
[Black "Terao, Juliana Sayumi"]
[Result "1/2-1/2"]
[WhiteElo "2238"]
[BlackElo "2223"]
[Annotator "RC"]
[PlyCount "107"]
[EventDate "2022.??.??"]
[TimeControl "60"]

1. e4 {[%emt 0:00:03]} e5 {[%emt 0:00:10]} 2. Nf3 {[%emt 0:00:07]} Nc6 {
[%emt 0:00:05]} 3. Bb5 {[%emt 0:00:10]} a6 {[%emt 0:00:17]} 4. Ba4 {[%emt 0:00:
00]} Nf6 {[%emt 0:00:09]} 5. d3 {[%emt 0:00:13]} d6 {[%emt 0:01:45]} 6. c3 {
[%emt 0:00:48]} Be7 {[%emt 0:00:53]} 7. O-O {[%emt 0:00:56]} O-O {[%emt 0:00:
00]} 8. Re1 {[%emt 0:02:40]} b5 {[%emt 0:01:11]} 9. Bb3 {[%emt 0:04:00]} Na5 {
[%emt 0:01:40]} 10. Bc2 {[%emt 0:00:11]} c5 {[%emt 0:00:13]} 11. a4 {[%emt 0:
00:00]} Bd7 {[%emt 0:01:29]} 12. Nbd2 {[%emt 0:09:03]} Re8 {[%emt 0:01:30]} 13.
Nf1 {[%emt 0:05:04]} h6 {[%emt 0:01:14]} 14. h3 {[%emt 0:02:23]} Bf8 {[%emt 0:
00:00]} 15. Ng3 {[%emt 0:07:10]} Qc7 {[%emt 0:07:08]} 16. Nh2 {[%emt 0:15:47]}
d5 {[%emt 0:04:35]} 17. Qf3 {[%emt 0:00:20]} dxe4 {[%emt 0:02:19]} 18. dxe4 {
[%emt 0:00:20]} Qc6 {[%emt 0:11:22]} 19. axb5 {[%emt 0:15:09]} axb5 {[%emt 0:
00:00]} 20. Nf5 {[%emt 0:00:07]} c4 {[%emt 0:08:12]} 21. Ne3 {[%emt 0:06:44]}
Nb3 {[%emt 0:04:28]} 22. Rxa8 {[%emt 0:00:21]} Qxa8 {[%emt 0:00:53]} 23. Bxb3 {
[%emt 0:05:41]} cxb3 {[%emt 0:00:11]} 24. Nd5 {[%emt 0:02:20]} Nxd5 {[%emt 0:
00:00]} 25. exd5 {[%emt 0:01:23]} e4 {[%emt 0:00:40]} 26. Qd1 {[%emt 0:01:19]}
Re5 {[%emt 0:04:21]} 27. Qxb3 {[%emt 0:00:49]} Rxd5 {[%emt 0:04:52]} 28. Be3 {
[%emt 0:03:18]} Be6 {[%emt 0:10:48]} 29. Qc2 {[%emt 0:00:07]} Rd3 {[%emt 0:00:
00]} 30. Bd4 {[%emt 0:02:43]} Qc6 {[%emt 0:03:55]} 31. Qe2 {[%emt 0:03:51]} f5
{[%emt 0:05:39]} 32. Rd1 {[%emt 0:03:10]} Bc4 {[%emt 0:01:11]} 33. Qe1 {
[%emt 0:00:33]} Bd5 {[%emt 0:03:30]} 34. f3 {[%emt 0:02:56]} Qc4 {[%emt 0:00:
00]} 35. fxe4 {[%emt 0:00:58]} Bxe4 {[%emt 0:00:33]} 36. Nf1 {[%emt 0:01:23]}
Rxd1 {[%emt 0:01:31]} 37. Qxd1 {[%emt 0:00:02]} Qc6 {[%emt 0:00:52]} 38. Qe2 {
[%emt 0:01:08]} f4 {[%emt 0:02:02]} 39. Nd2 {[%emt 0:00:35]} Bd5 {[%emt 0:00:
00]} 40. Nf3 {[%emt 0:00:49]} Qg6 {[%emt 0:01:18]} 41. b4 {[%emt 0:13:50]} Bc4
{[%emt 0:08:39]} 42. Qd2 {[%emt 0:02:14]} Qf5 {[%emt 0:01:43]} 43. Be5 {
[%emt 0:03:12]} g5 {[%emt 0:01:45]} 44. Qd8 {[%emt 0:00:53]} Qe6 {[%emt 0:00:
00]} 45. Bd4 {[%emt 0:04:07]} Qe7 {[%emt 0:05:41]} 46. Qb8 {[%emt 0:01:55]} Qd6
{[%emt 0:01:17]} 47. Qe8 {[%emt 0:00:56]} Qe6 {[%emt 0:01:36]} 48. Qb8 {
[%emt 0:00:57]} Qd6 {[%emt 0:02:26]} 49. Qa7 {[%emt 0:03:36]} Bd5 {[%emt 0:00:
00]} 50. Ne5 {[%emt 0:00:47]} f3 {[%emt 0:01:24]} 51. gxf3 {[%emt 0:01:20]} Qe6
{[%emt 0:00:29]} 52. Qd7 {[%emt 0:01:53]} Qxd7 {[%emt 0:00:36]} 53. Nxd7 {
[%emt 0:00:03]} Bxf3 {[%emt 0:00:42]} 54. Nxf8 {[%emt 0:00:04]} 1/2-1/2

[Event "44th Chess Olympiad Women 2022"]
[Site "Chennai"]
[Date "2022.08.08"]
[Round "10.18"]
[White "Frayna, Janelle Mae"]
[Black "Vo, Thi Kim Phung"]
[Result "1-0"]
[WhiteElo "2224"]
[BlackElo "2333"]
[Annotator "RC"]
[PlyCount "129"]
[EventDate "2022.??.??"]
[TimeControl "60"]

1. e4 {[%emt 0:00:13]} e6 {[%emt 0:00:08]} 2. d4 {[%emt 0:00:04]} d5 {[%emt 0:
00:00]} 3. Nd2 {[%emt 0:00:29]} c5 {[%emt 0:00:08]} 4. Ngf3 {[%emt 0:00:56]}
cxd4 {[%emt 0:00:10]} 5. Nxd4 {[%emt 0:00:04]} Nf6 {[%emt 0:00:08]} 6. exd5 {
[%emt 0:02:08]} Nxd5 {[%emt 0:00:12]} 7. N2f3 {[%emt 0:03:12]} a6 {[%emt 0:00:
00]} 8. c4 {[%emt 0:12:06]} Nf6 {[%emt 0:00:11]} 9. Be2 {[%emt 0:01:00]} e5 {
[%emt 0:00:17]} 10. Nb3 {[%emt 0:00:18]} Qxd1+ {[%emt 0:01:55]} 11. Bxd1 {
[%emt 0:02:02]} Bb4+ {[%emt 0:01:00]} 12. Bd2 {[%emt 0:05:05]} Bxd2+ {[%emt 0:
00:00]} 13. Nfxd2 {[%emt 0:00:02]} Nc6 {[%emt 0:00:57]} 14. Bf3 {[%emt 0:01:01]
} Nb4 {[%emt 0:01:31]} 15. O-O {[%emt 0:00:40]} O-O {[%emt 0:00:18]} 16. Nc5 {
[%emt 0:07:00]} Rb8 {[%emt 0:02:28]} 17. a3 {[%emt 0:03:54]} Nc2 {[%emt 0:00:
00]} 18. Rac1 {[%emt 0:02:13]} Nd4 {[%emt 0:00:07]} 19. b4 {[%emt 0:01:36]} Rd8
{[%emt 0:09:54]} 20. Rfe1 {[%emt 0:01:27]} b6 {[%emt 0:02:02]} 21. Ncb3 {
[%emt 0:00:57]} Nxb3 {[%emt 0:03:17]} 22. Nxb3 {[%emt 0:00:04]} Rd3 {[%emt 0:
00:00]} 23. Red1 {[%emt 0:03:20]} Rxd1+ {[%emt 0:00:31]} 24. Bxd1 {[%emt 0:00:
00]} Be6 {[%emt 0:05:08]} 25. c5 {[%emt 0:02:25]} Bxb3 {[%emt 0:03:52]} 26.
Bxb3 {[%emt 0:00:02]} Rc8 {[%emt 0:00:08]} 27. Bc4 {[%emt 0:02:37]} b5 {
[%emt 0:00:29]} 28. Bb3 {[%emt 0:03:24]} Rd8 {[%emt 0:04:47]} 29. f3 {[%emt 0:
00:00]} Kf8 {[%emt 0:00:22]} 30. Rd1 {[%emt 0:01:42]} Rxd1+ {[%emt 0:04:24]}
31. Bxd1 {[%emt 0:00:04]} Nd5 {[%emt 0:00:54]} 32. Bb3 {[%emt 0:01:45]} Nc7 {
[%emt 0:00:08]} 33. Kf2 {[%emt 0:01:04]} Ke7 {[%emt 0:00:08]} 34. g4 {[%emt 0:
00:00]} h6 {[%emt 0:03:58]} 35. Ke3 {[%emt 0:00:43]} g6 {[%emt 0:42:02]} 36.
Ke4 {[%emt 0:03:46]} f6 {[%emt 0:00:05]} 37. h4 {[%emt 0:04:55]} Ne6 {[%emt 0:
00:00]} 38. Bd5 {[%emt 0:07:42]} Nd4 {[%emt 0:00:00]} 39. f4 {[%emt 0:06:23]}
Nc2 {[%emt 0:00:00]} 40. fxe5 {[%emt 0:00:04]} fxe5 {[%emt 0:00:00]} 41. Kxe5 {
[%emt 0:31:43]} Nxa3 {[%emt 0:25:54]} 42. Be4 {[%emt 0:03:54]} Nc4+ {[%emt 0:
00:00]} 43. Kd4 {[%emt 0:00:50]} g5 {[%emt 0:06:42]} 44. hxg5 {[%emt 0:01:07]}
hxg5 {[%emt 0:03:26]} 45. Bd5 {[%emt 0:02:02]} Nd2 {[%emt 0:00:00]} 46. Ke5 {
[%emt 0:00:00]} Nf1 {[%emt 0:00:00]} 47. Bb7 {[%emt 0:00:00]} Ne3 {[%emt 0:00:
00]} 48. Bxa6 {[%emt 0:00:00]} Nxg4+ {[%emt 0:00:00]} 49. Kd4 {[%emt 0:00:00]}
Nf6 {[%emt 0:00:00]} 50. Bxb5 {[%emt 0:00:00]} g4 {[%emt 0:00:00]} 51. Bc6 {
[%emt 0:00:00]} g3 {[%emt 0:00:00]} 52. b5 {[%emt 0:00:00]} Nd7 {[%emt 0:00:00]
} 53. Bg2 {[%emt 0:00:00]} Kd8 {[%emt 0:00:00]} 54. b6 {[%emt 0:00:00]} Kc8 {
[%emt 0:00:00]} 55. Kd5 {[%emt 0:00:00]} Nf6+ {[%emt 0:00:00]} 56. Kd6 {
[%emt 0:00:00]} Ne8+ {[%emt 0:00:15]} 57. Ke5 {[%emt 0:00:00]} Kd7 {[%emt 0:00:
00]} 58. c6+ {[%emt 0:00:00]} Kc8 {[%emt 0:01:22]} 59. Bh3+ {[%emt 0:02:19]}
Kb8 {[%emt 0:00:07]} 60. Ke6 {[%emt 0:00:44]} g2 {[%emt 0:05:15]} 61. Bxg2 {
[%emt 0:00:11]} Kc8 {[%emt 0:00:27]} 62. Ke7 {[%emt 0:00:25]} Nc7 {[%emt 0:00:
00]} 63. Bh3+ {[%emt 0:01:05]} Kb8 {[%emt 0:00:04]} 64. bxc7+ {[%emt 0:00:36]}
Kxc7 {[%emt 0:00:09]} 65. Bd7 {[%emt 0:00:13]} 1-0

[Event "44th Chess Olympiad Women 2022"]
[Site "Chennai"]
[Date "2022.08.08"]
[Round "10.18"]
[White "Nguyen, Thi Mai Hung"]
[Black "Fronda, Jan Jodilyn"]
[Result "1-0"]
[WhiteElo "2223"]
[BlackElo "2181"]
[Annotator "RC"]
[PlyCount "99"]
[EventDate "2022.??.??"]
[TimeControl "60"]

1. d4 {[%emt 0:00:07]} d5 {[%emt 0:01:13]} 2. Nf3 {[%emt 0:00:13]} Nf6 {
[%emt 0:00:14]} 3. Bf4 {[%emt 0:01:55]} c5 {[%emt 0:02:14]} 4. e3 {[%emt 0:00:
00]} Nc6 {[%emt 0:00:12]} 5. c3 {[%emt 0:01:16]} Qb6 {[%emt 0:02:16]} 6. Qc2 {
[%emt 0:00:38]} g6 {[%emt 0:01:37]} 7. Nbd2 {[%emt 0:01:25]} Bf5 {[%emt 0:00:
00]} 8. dxc5 {[%emt 0:01:49]} Qxc5 {[%emt 0:00:07]} 9. Qb3 {[%emt 0:01:58]} Na5
{[%emt 0:00:33]} 10. Bb5+ {[%emt 0:08:23]} Bd7 {[%emt 0:00:24]} 11. Bxd7+ {
[%emt 0:00:08]} Nxd7 {[%emt 0:00:05]} 12. Qa4 {[%emt 0:04:52]} Bg7 {[%emt 0:00:
00]} 13. O-O {[%emt 0:06:31]} Nc6 {[%emt 0:00:15]} 14. Rad1 {[%emt 0:03:18]} e6
{[%emt 0:05:36]} 15. e4 {[%emt 0:01:53]} Qe7 {[%emt 0:16:35]} 16. Bg5 {[%emt 0:
00:00]} f6 {[%emt 0:03:00]} 17. Be3 {[%emt 0:05:58]} dxe4 {[%emt 0:04:38]} 18.
Nxe4 {[%emt 0:00:45]} O-O {[%emt 0:00:34]} 19. Qb3 {[%emt 0:11:21]} b6 {
[%emt 0:28:30]} 20. Rd6 {[%emt 0:02:47]} Na5 {[%emt 0:01:02]} 21. Qxe6+ {
[%emt 0:08:22]} Qxe6 {[%emt 0:01:34]} 22. Rxe6 {[%emt 0:00:09]} Nc4 {[%emt 0:
00:00]} 23. Bc1 {[%emt 0:04:03]} Rfe8 {[%emt 0:03:46]} 24. Rxe8+ {[%emt 0:00:
00]} Rxe8 {[%emt 0:00:04]} 25. Ng3 {[%emt 0:09:24]} f5 {[%emt 0:02:07]} 26. Re1
{[%emt 0:08:28]} Rxe1+ {[%emt 0:02:20]} 27. Nxe1 {[%emt 0:00:01]} Nc5 {[%emt 0:
00:00]} 28. Kf1 {[%emt 0:00:31]} Kf7 {[%emt 0:00:30]} 29. b3 {[%emt 0:05:00]}
Nd6 {[%emt 0:01:27]} 30. c4 {[%emt 0:00:47]} Bc3 {[%emt 0:05:21]} 31. Ba3 {
[%emt 0:02:03]} Nde4 {[%emt 0:03:19]} 32. Nxe4 {[%emt 0:00:42]} Nxe4 {[%emt 0:
00:00]} 33. Nd3 {[%emt 0:00:51]} Bd4 {[%emt 0:01:12]} 34. Bb4 {[%emt 0:00:55]}
g5 {[%emt 0:06:23]} 35. f3 {[%emt 0:01:07]} Nf6 {[%emt 0:00:10]} 36. Ke2 {
[%emt 0:00:59]} Nd7 {[%emt 0:00:17]} 37. h3 {[%emt 0:01:17]} h5 {[%emt 0:01:46]
} 38. Bd2 {[%emt 0:00:36]} f4 {[%emt 0:00:58]} 39. h4 {[%emt 0:00:23]} gxh4 {
[%emt 0:00:48]} 40. Nxf4 {[%emt 0:00:08]} Nf6 {[%emt 0:00:11]} 41. Be1 {
[%emt 0:31:19]} h3 {[%emt 0:02:44]} 42. Nxh3 {[%emt 0:00:00]} Ke6 {[%emt 0:00:
00]} 43. Kd3 {[%emt 0:00:00]} Bb2 {[%emt 0:01:28]} 44. Bg3 {[%emt 0:00:00]} Kf5
{[%emt 0:00:35]} 45. Nf2 {[%emt 0:00:00]} Nd7 {[%emt 0:02:29]} 46. Ne4 {
[%emt 0:00:00]} a5 {[%emt 0:02:30]} 47. Nd6+ {[%emt 0:00:00]} Ke6 {[%emt 0:00:
00]} 48. Nc8 {[%emt 0:00:00]} Ba3 {[%emt 0:00:50]} 49. Bf2 {[%emt 0:00:00]}
Ne5+ {[%emt 0:01:34]} 50. Ke4 {[%emt 0:00:00]} 1-0

[Event "44th Chess Olympiad Women 2022"]
[Site "Chennai"]
[Date "2022.08.08"]
[Round "10.18"]
[White "Nguyen, Thien Ngan"]
[Black "Mordido, Kylen Joy"]
[Result "0-1"]
[WhiteElo "1912"]
[BlackElo "2023"]
[Annotator "NA RC"]
[PlyCount "102"]
[EventDate "2022.??.??"]
[TimeControl "60"]

1. e4 {[%emt 0:00:04]} c5 {[%emt 0:00:39]} 2. Nf3 {[%emt 0:00:10]} e6 {[%emt 0:
00:00]} 3. d4 {[%emt 0:00:14]} cxd4 {[%emt 0:00:42]} 4. Nxd4 {[%emt 0:00:10]}
a6 {[%emt 0:00:47]} 5. Bd3 {[%emt 0:00:30]} Nf6 {[%emt 0:01:56]} 6. Qe2 {
[%emt 0:00:41]} d6 {[%emt 0:01:18]} 7. O-O {[%emt 0:01:28]} g6 {[%emt 0:01:07]}
8. Nc3 {[%emt 0:00:47]} Bg7 {[%emt 0:00:54]} 9. Kh1 {[%emt 0:00:34]} O-O {
[%emt 0:02:54]} 10. f4 {[%emt 0:00:18]} Nfd7 {[%emt 0:09:36]} 11. Nf3 {[%emt 0:
00:00]} Nc6 {[%emt 0:03:20]} 12. Bd2 {[%emt 0:01:47]} b5 {[%emt 0:04:28]} 13.
Rae1 {[%emt 0:01:28]} Bb7 {[%emt 0:03:04]} 14. Ng5 {[%emt 0:07:07]} Rc8 {
[%emt 0:05:53]} 15. Qg4 {[%emt 0:02:38]} Nf6 {[%emt 0:05:12]} 16. Qh3 {[%emt 0:
00:00]} h6 {[%emt 0:02:44]} 17. Nf3 {[%emt 0:04:50]} b4 {[%emt 0:04:02]} 18.
Nd1 {[%emt 0:01:32]} d5 {[%emt 0:03:11]} 19. e5 {[%emt 0:04:44]} Ne4 {[%emt 0:
00:00]} 20. Be3 {[%emt 0:03:50]} Ne7 {[%emt 0:04:27]} 21. Nd4 {[%emt 0:00:52]}
Nf5 {[%emt 0:02:08]} 22. Bg1 {[%emt 0:08:07]} h5 {[%emt 0:04:25]} 23. Nxf5 {
[%emt 0:09:14]} exf5 {[%emt 0:00:27]} 24. Bd4 {[%emt 0:00:29]} Qa5 {[%emt 0:00:
00]} 25. Ne3 {[%emt 0:00:59]} Rc7 {[%emt 0:06:15]} 26. Be2 {[%emt 0:07:32]} b3
{[%emt 0:06:41]} 27. c3 {[%emt 0:02:35]} bxa2 {[%emt 0:01:22]} 28. Qh4 {
[%emt 0:02:32]} Rc6 {[%emt 0:11:34]} 29. Qe7 {[%emt 0:08:00]} Bc8 {[%emt 0:00:
00]} 30. Nc2 {[%emt 0:07:16]} Nd2 {[%emt 0:01:29]} 31. Rg1 {[%emt 0:00:27]} Nb1
{[%emt 0:00:38]} 32. Na1 {[%emt 0:02:09]} Be6 {[%emt 0:01:00]} 33. Bd3 {
[%emt 0:03:47]} Nd2 {[%emt 0:00:34]} 34. Re2 {[%emt 0:00:57]} Ne4 {[%emt 0:00:
00]} 35. Qb7 {[%emt 0:08:15]} Rfc8 {[%emt 0:00:36]} 36. Nc2 {[%emt 0:01:01]}
Bf8 {[%emt 0:00:26]} 37. Ra1 {[%emt 0:01:01]} Nc5 {[%emt 0:00:32]} 38. Bxc5 {
[%emt 0:03:01]} Bxc5 {[%emt 0:00:02]} 39. Qb3 {[%emt 0:01:55]} Qb6 {[%emt 0:00:
00]} 40. Qxb6 {[%emt 0:01:31]} Rxb6 {[%emt 0:00:23]} 41. Rxa2 {[%emt 0:30:33]}
d4 {[%emt 0:30:24]} 42. c4 {[%emt 0:00:00]} Rb3 {[%emt 0:00:00]} 43. Ne1 {
[%emt 0:00:00]} Bb4 {[%emt 0:00:00]} 44. Bc2 {[%emt 0:00:00]} Bxc4 {[%emt 0:00:
00]} 45. Bxb3 {[%emt 0:00:00]} Bxe2 {[%emt 0:00:00]} 46. Ra1 {[%emt 0:00:00]}
d3 {[%emt 0:00:00]} 47. Bd1 {[%emt 0:00:00]} d2 {[%emt 0:00:00]} 48. Nc2 {
[%emt 0:00:00]} Bxd1 {[%emt 0:00:00]} 49. Nxb4 {[%emt 0:00:00]} Rc1 {[%emt 0:
00:00]} 50. Rxc1 {[%emt 0:00:00]} dxc1=Q {[%emt 0:00:00]} 51. Nd3 {[%emt 0:00:
00]} Qb1 {[%emt 0:00:00]} 0-1

[Event "44th Chess Olympiad Women 2022"]
[Site "Chennai"]
[Date "2022.08.08"]
[Round "10.18"]
[White "San Diego, Marie Antoinette"]
[Black "Bach, Ngoc Thuy Duong"]
[Result "1-0"]
[WhiteElo "2101"]
[BlackElo "2192"]
[Annotator "NA RC"]
[PlyCount "63"]
[EventDate "2022.??.??"]
[TimeControl "60"]

1. d4 {[%emt 0:00:27]} d5 {[%emt 0:00:20]} 2. Nf3 {[%emt 0:00:11]} Nf6 {
[%emt 0:00:11]} 3. c4 {[%emt 0:00:05]} e6 {[%emt 0:00:23]} 4. Nc3 {[%emt 0:00:
00]} dxc4 {[%emt 0:06:23]} 5. e3 {[%emt 0:02:21]} a6 {[%emt 0:00:39]} 6. a4 {
[%emt 0:05:07]} b6 {[%emt 0:03:54]} 7. Bxc4 {[%emt 0:00:36]} Bb7 {[%emt 0:00:
00]} 8. O-O {[%emt 0:00:29]} Nbd7 {[%emt 0:02:44]} 9. Qe2 {[%emt 0:01:04]} c5 {
[%emt 0:04:31]} 10. Rd1 {[%emt 0:01:15]} cxd4 {[%emt 0:02:28]} 11. exd4 {
[%emt 0:02:14]} Bxf3 {[%emt 0:06:59]} 12. Qxf3 {[%emt 0:01:54]} Bd6 {[%emt 0:
00:00]} 13. d5 {[%emt 0:20:39]} e5 {[%emt 0:08:47]} 14. Bg5 {[%emt 0:07:43]}
Qc8 {[%emt 0:05:46]} 15. Bd3 {[%emt 0:05:44]} O-O {[%emt 0:02:22]} 16. Bf5 {
[%emt 0:01:49]} Qb7 {[%emt 0:00:58]} 17. Qh3 {[%emt 0:03:41]} g6 {[%emt 0:00:
00]} 18. Bxd7 {[%emt 0:03:27]} Nxd7 {[%emt 0:00:25]} 19. Ne4 {[%emt 0:00:36]}
f5 {[%emt 0:19:36]} 20. Nxd6 {[%emt 0:00:29]} Qc7 {[%emt 0:00:11]} 21. Be7 {
[%emt 0:03:12]} Nf6 {[%emt 0:03:15]} 22. Bxf8 {[%emt 0:01:45]} Rxf8 {[%emt 0:
00:00]} 23. Qa3 {[%emt 0:02:09]} Rd8 {[%emt 0:04:11]} 24. Rac1 {[%emt 0:00:36]}
Qxd6 {[%emt 0:03:55]} 25. Qxd6 {[%emt 0:00:06]} Rxd6 {[%emt 0:00:09]} 26. Rc6 {
[%emt 0:00:16]} Rxd5 {[%emt 0:04:06]} 27. Rxd5 {[%emt 0:00:06]} Nxd5 {[%emt 0:
00:00]} 28. Rd6 {[%emt 0:00:05]} Nb4 {[%emt 0:02:36]} 29. Rxb6 {[%emt 0:02:11]}
Nd3 {[%emt 0:01:08]} 30. b4 {[%emt 0:01:37]} Kf7 {[%emt 0:04:18]} 31. b5 {
[%emt 0:00:20]} axb5 {[%emt 0:01:28]} 32. Rxb5 {[%emt 0:00:06]} 1-0